Workbook

Sheet calcolo handicap
B2: Scelta circolo e percorso | C2: Data Gara
B3: LECCO 18 Buche | D3: =TODAY() -> 2021-04-28
B4: Scelta tee di gioco | D4: Handicap di gioco
B5: giallo | D5: =IF('elenco campi italiani'!X11=0,"NO TEE",IF('elenco campi italiani'!AA11=9,ROUND(+(B7*'elenco campi italiani'!Y11/113+('elenco campi italiani'!X11-'elenco campi italiani'!W11)*2)/2,0),ROUND(+B7*'elenco campi italiani'!Y11/113+'elenco campi italiani'!X11-'elenco campi italiani'!W11,0))) -> 15
B6: Inserire hcp attuale | D6: risultato SD
B7: 12.4 | D7: =IF(D3>44197,IF('elenco campi italiani'!X11=0,"NO TEE",IF('elenco campi italiani'!AA11=9,+'elenco campi italiani'!AA18,+'elenco campi italiani'!W18)),IF('elenco campi italiani'!X11=0,"NO TEE",IF('elenco campi italiani'!AA11=9,B7-2*('elenco campi italiani'!AA14+B11)*113/'elenco campi italiani'!Y11,B7-('elenco campi italiani'!W14+B11)*113/'elenco campi italiani'!Y11))) -> 11.8854
B8: Inserire risultato gara
B9: 37
B10: Inserire pcc gara | D10: NUOVO HANDICAP | G10: Associazione "La Vita è un Dono"
B11: 0 | D11: =IF('storico gare'!G11="","< 8 GARE",IF('storico gare'!G12="",SUM('storico gare'!I4:I5)/2,IF('storico gare'!G15="",SUM('storico gare'!I4:I6)/3,IF('storico gare'!G18="",SUM('storico gare'!I4:I7)/4,IF('storico gare'!G20="",SUM('storico gare'!I4:I8)/5,IF('storico gare'!G22="",SUM('storico gare'!I4:I9)/6,IF('storico gare'!G23="",SUM('storico gare'!I4:I10)/7,SUM('storico gare'!I4:I11)/8))))))) -> < 8 GARE | G11: Associazione Italiana Ingegneri Golfisti
B12: PUNTEGGI MINIMI PROSSIMA GARA | H12: INFO@LAVITAEUNDONO.ORG
B13: PER SCENDERE | D13: PER NON SALIRE | H13: WWW.LAVITAEUNDONO.ORG
B14: =IF(E24<>"",+C24-0.1,"< 8 GARE") -> < 8 GARE | C14: SD | D14: =IF(E24<>20,"qualsiasi",+C24) -> qualsiasi | H14: SEGRETERIA.AIIG@GMAIL.COM
B15: =IF(E24<>"",IF('elenco campi italiani'!AA11=18,CEILING(-B14/'elenco campi italiani'!V11+36+D5+'elenco campi italiani'!W11-'elenco campi italiani'!X11,1),CEILING(-B14/'elenco campi italiani'!V11+19+2*D5+2*'elenco campi italiani'!W11-2*'elenco campi italiani'!X11,1)),"< 8 GARE") -> < 8 GARE | C15: STB | D15: =IF(D14="qualsiasi",D14,IF('elenco campi italiani'!AA11=18,CEILING(-D14/'elenco campi italiani'!V11+36+D5+'elenco campi italiani'!W11-'elenco campi italiani'!X11,1),CEILING(-D14/'elenco campi italiani'!V11+19+2*D5+2*'elenco campi italiani'!W11-2*'elenco campi italiani'!X11,1))) -> qualsiasi | H15: WWW.ASSIIG.NET
B16: PER ENTRARE NEI MIGLIORI 8 | C16: STB | D16: =IF(E24<>"",IF(E24=20,IF('elenco campi italiani'!AA11=18,CEILING(-'storico gare'!I12/'elenco campi italiani'!V11+36+D5+'elenco campi italiani'!W11-'elenco campi italiani'!X11,1),CEILING(-'storico gare'!I12/'elenco campi italiani'!V11+19+2*D5+2*'elenco campi italiani'!W11-2*'elenco campi italiani'!X11,1)),B15),"<= 8 GARE") -> <= 8 GARE | G16: DOMENICA 29 AGOSTO 2021
B17: PER FARE EXCEPTIONAL SCORE NELLA PROSSIMA GARA | E17: =IF('elenco campi italiani'!AA11=18,CEILING(-(B7-7)/'elenco campi italiani'!V11+36+D5+'elenco campi italiani'!W11-'elenco campi italiani'!X11,1),CEILING(-(B7-7)/'elenco campi italiani'!V11+19+2*D5+2*'elenco campi italiani'!W11-2*'elenco campi italiani'!X11,1)) -> 45 | G17: GOLF CLUB LECCO
G18: XIV MEMORIAL DAVIDE CARBONE - AIIG
B19: ULTIMA GARA MEMORIZZATA
B20: CAMPO | C20: SD | D20: DATA | E20: N | G20: per ascoltare le istruzioni per utilizzare il file
G21: https://youtu.be/YrOqx8E-0Ug
B22: PROSSIMA GARA DA SCARTARE
B23: CAMPO | C23: SD | D23: DATA | E23: N | G23: Aggiornamenti da versioni precedenti
B24: =IF('storico gare'!F4=20,'storico gare'!H4,IF('storico gare'!F5=20,'storico gare'!H5,IF('storico gare'!F6=20,'storico gare'!H6,IF('storico gare'!F7=20,'storico gare'!H7,IF('storico gare'!F8=20,'storico gare'!H8,IF('storico gare'!F9=20,'storico gare'!H9,IF('storico gare'!F10=20,'storico gare'!H10,IF('storico gare'!G11="","< 8 GARE",'storico gare'!H11)))))))) -> < 8 GARE | C24: =IF('storico gare'!F4=20,'storico gare'!I4,IF('storico gare'!F5=20,'storico gare'!I5,IF('storico gare'!F6=20,'storico gare'!I6,IF('storico gare'!F7=20,'storico gare'!I7,IF('storico gare'!F8=20,'storico gare'!I8,IF('storico gare'!F9=20,'storico gare'!I9,IF('storico gare'!F10=20,'storico gare'!I10,IF('storico gare'!G11="","",'storico gare'!I11)))))))) ->  | D24: =IF('storico gare'!F4=20,'storico gare'!G4,IF('storico gare'!F5=20,'storico gare'!G5,IF('storico gare'!F6=20,'storico gare'!G6,IF('storico gare'!F7=20,'storico gare'!G7,IF('storico gare'!F8=20,'storico gare'!G8,IF('storico gare'!F9=20,'storico gare'!G9,IF('storico gare'!F10=20,'storico gare'!G10,IF('storico gare'!G11="","< 8 GARE",'storico gare'!G11)))))))) -> < 8 GARE | E24: =IF('storico gare'!F4=20,'storico gare'!F4,IF('storico gare'!F5=20,'storico gare'!F5,IF('storico gare'!F6=20,'storico gare'!F6,IF('storico gare'!F7=20,'storico gare'!F7,IF('storico gare'!F8=20,'storico gare'!F8,IF('storico gare'!F9=20,'storico gare'!F9,IF('storico gare'!F10=20,'storico gare'!F10,IF('storico gare'!G11="","",'storico gare'!F11)))))))) ->  | G24: 1- calcolo SD rivisto in base all'anno della gara,
G25: perché da 1-1-21 l'algoritmo di calcolo è cambiato
G26: 2- aggiunto il pulsante "Elimina Risultato Gara" così
G27: vengono rimesse in ordine le gare precedenti
G28: 3- aggiunto il calcolo dell’exceptional score, che però
G29: non viene considerato nella media dei migliori 8
G30: 4- aggiunta la casella “Per entrare nei migliori 8” perchè,
G31: nel caso la gara n.20 da scartare sia anche una delle
G32: prime 8, manca un'informazione, cioè non basta sapere
G33: il valore per scendere e quello per non salire, serve
G34: anche sapere quale risultato ti fornisce comunque un
G35: SD che sia nei migliori 8, ad esempio se la gara n.20 è
G36: la migliore di tutte, per cui sarà scartata sicuramente,
G37: sapere quale risultato ti serve per evitare che il 9°
G38: risultato entri nei migliori 8 è comunque importante,
G39: almeno sai prima di giocare che con 38 scendi, con 37
G40: magari non sali, ma un 30 o un 31 ti entra comunque
G41: nei migliori 8, per cui ha un senso anche cercare di
G42: imbucare l’ultimo putt alla 18 per fare 31!!!
Q47: 0
Q48: =1+Q47 -> 1
Q49: =1+Q48 -> 2
Q50: =1+Q49 -> 3
Q51: 4
Q52: 5
Q53: 6
Q54: 7
Q55: 8
Q56: 9
Q57: 10
Q58: 11
Q59: 12
Q60: 13
Q61: 14
Q62: 15
Q63: 16
Q64: 17
Q65: 18
Q66: 19
Q67: 20
Q68: 21
Q69: 22
Q70: 23
Q71: 24
Q72: 25
Q73: 26
Q74: 27
Q75: 28
Q76: 29
Q77: 30
Q78: 31
Q79: 32
Q80: 33
Q81: 34
Q82: 35
Q83: 36
Q84: 37
Q85: 38
Q86: 39
Q87: 40
Q88: 41
Q89: 42
Q90: 43
Q91: 44
Q92: 45
Q93: 46
Q94: 47
Q95: 48
Q96: 49
Q97: 50

Sheet storico gare
B2: GARE MEMORIZZATE IN ORDINE DI DATA | F2: MIGLIORI 8 RISULTATI SU 20
B3: N | C3: DATA | D3: CAMPO | E3: SD | F3: N | G3: DATA | H3: CAMPO | I3: SD
B4: 1 | F4: 1
B5: 2 | F5: 2
B6: 3 | F6: 3
B7: 4 | F7: 4
B8: 5 | F8: 5
B9: 6 | F9: 6
B10: 7 | F10: 7
B11: 8 | F11: 8
B12: 9 | F12: 9
B13: 10 | F13: 10
B14: 11 | F14: 11
B15: 12 | F15: 12
B16: 13 | F16: 13
B17: 14 | F17: 14
B18: 15 | F18: 15
B19: 16 | F19: 16
B20: 17 | F20: 17
B21: 18 | F21: 18
B22: 19 | F22: 19
B23: 20 | F23: 20
B24: 21
B25: =1+B24 -> 22
B26: 23
B27: 24
B28: 25
B29: 26
B30: 27
B31: 28
B32: 29
B33: 30
B34: 31
B35: 32
B36: 33
B37: 34
B38: 35
B39: 36
B40: 37
B41: 38
B42: 39
B43: 40
B44: 41
B45: 42
B46: 43
B47: 44
B48: 45
B49: 46
B50: 47
B51: 48
B52: 49
B53: 50
B54: 51
B55: 52
B56: 53
B57: 54
B58: 55
B59: 56
B60: 57
B61: 58
B62: 59
B63: 60
B64: 61
B65: 62
B66: 63
B67: 64
B68: 65
B69: =1+B68 -> 66
B70: 67
B71: 68
B72: 69
B73: 70
B74: 71
B75: 72
B76: 73
B77: 74
B78: 75
B79: 76
B80: 77
B81: 78
B82: 79
B83: 80
B84: 81
B85: 82
B86: 83
B87: 84
B88: 85
B89: 86
B90: 87
B91: 88
B92: 89
B93: 90
B94: 91
B95: 92
B96: 93
B97: 94
B98: 95
B99: 96
B100: 97
B101: 98
B102: 99
B103: 100
B104: 101
B105: 102
B106: 103
B107: 104
B108: 105
B109: 106
B110: 107
B111: 108
B112: 109
B113: 110
B114: 111
B115: 112
B116: 113
B117: 114
B118: 115
B119: 116
B120: 117
B121: 118
B122: 119
B123: 120
B124: 121
B125: 122
B126: 123
B127: 124
B128: 125
B129: 126
B130: 127
B131: 128
B132: 129
B133: =1+B132 -> 130
B134: 131
B135: 132
B136: 133
B137: 134
B138: 135
B139: 136
B140: 137
B141: 138
B142: 139
B143: 140
B144: 141
B145: 142
B146: 143
B147: 144
B148: 145
B149: 146
B150: 147
B151: 148
B152: 149
B153: 150
B154: 151
B155: 152
B156: 153
B157: 154
B158: 155
B159: 156
B160: 157
B161: 158
B162: 159
B163: 160
B164: 161
B165: 162
B166: 163
B167: 164
B168: 165
B169: 166
B170: 167
B171: 168
B172: 169
B173: 170
B174: 171
B175: 172
B176: 173
B177: 174
B178: 175
B179: 176
B180: 177
B181: 178
B182: 179
B183: 180
B184: 181
B185: 182
B186: 183
B187: 184
B188: 185
B189: 186
B190: 187
B191: 188
B192: 189
B193: 190
B194: 191
B195: 192
B196: 193
B197: =1+B196 -> 194
B198: 195
B199: 196
B200: 197
B201: 198
... 801 more rows

Sheet elenco campi italiani
A1: NB: IN ROSSO I DATI DEI CAMPI AGGIUNTI MANUALMENTE, IN QUANTO NON PRESENTI NEL FILE DELLA FEDERAZIONE | U1: hcp | V1: tee | W1: n. tee | X1: UOMO/DONNA | Y1: n. pcc
A2: TOTALE PERCORSI | B2: 902 | F2: TEE UOMINI | N2: TEE DONNE | U2: -6 | V2: nero | W2: 6 | Y2: -1 | Z2: arancio | AA2: 18
A3: Nome esteso | B3: n. | C3: Circolo | D3: Percorso | F3: NERO | H3: BIANCO | J3: GIALLO | L3: VERDE | N3: BLU | P3: ROSSO | R3: ARANCIO | U3: =ROUND(0.1+U2,1) -> -5.9 | V3: bianco | W3: 8 | Y3: 0 | Z3: bianco | AA3: 8
E4: PAR | F4: CR | G4: Slope | H4: CR | I4: Slope | J4: CR | K4: Slope | L4: CR | M4: Slope | N4: CR | O4: Slope | P4: CR | Q4: Slope | R4: CR | S4: Slope | U4: =ROUND(0.1+U3,1) -> -5.8 | V4: giallo | W4: 10 | Y4: 1 | Z4: blu | AA4: 14
A5: =_xlfn.TEXTJOIN(" ",TRUE,C5:D5) -> ACAYA 18 Buche Par 71 | B5: =1+B4 -> 1 | C5: ACAYA | D5: 18 Buche Par 71 | E5: 71 | H5: 73.9 | I5: 136 | J5: 71.8 | K5: 130 | L5: 68.2 | M5: 122 | N5: 77.4 | O5: 134 | P5: 73.9 | Q5: 127 | R5: 70.9 | S5: 121 | U5: =ROUND(0.1+U4,1) -> -5.7 | V5: verde | W5: 12 | Y5: 2 | Z5: giallo | AA5: 10
A6: =_xlfn.TEXTJOIN(" ",TRUE,C6:D6) -> ACAYA 18 Buche Par 72 | B6: 2 | C6: ACAYA | D6: 18 Buche Par 72 | E6: 72 | J6: 72.8 | K6: 133 | P6: 74.9 | Q6: 131 | U6: -5.6 | V6: blu | W6: 14 | X6: D | Y6: 3 | Z6: nero | AA6: 6
A7: ACAYA Prime Nove | B7: 3 | C7: ACAYA | D7: Prime Nove | E7: 36 | J7: 36.4 | K7: 125 | L7: 34.3 | M7: 116 | P7: 37.2 | Q7: 122 | R7: 35.7 | S7: 116 | U7: -5.5 | V7: rosso | W7: 16 | X7: D | Z7: rosso | AA7: 16
A8: ACAYA Seconde Nove Par 35 | B8: 4 | C8: ACAYA | D8: Seconde Nove Par 35 | E8: 35 | J8: 35.4 | K8: 135 | L8: 33.7 | M8: 127 | P8: 36.7 | Q8: 131 | R8: 35.2 | S8: 126 | U8: -5.4 | V8: arancio | W8: 18 | X8: D | Z8: verde | AA8: 12
A9: ACAYA Seconde Nove Par 36 | B9: 5 | C9: ACAYA | D9: Seconde Nove Par 36 | E9: 36 | J9: 36.4 | K9: 141 | P9: 37.8 | Q9: 137 | U9: -5.3
A10: ACQUABONA 18 Buche | B10: 6 | C10: ACQUABONA | D10: 18 Buche | E10: 68 | J10: 68.3 | K10: 131 | P10: 70.6 | Q10: 119 | U10: -5.2 | V10: 113/SLOPE | W10: PAR DEL CAMPO | X10: CR DEL CAMPO | Y10: SR DEL CAMPO | Z10: TEE USATO | AA10: Tipo gara 9-18 buche
A11: ACQUABONA Nove Buche | B11: 7 | C11: ACQUABONA | D11: Nove Buche | E11: 34 | J11: 34.1 | K11: 131 | P11: 35.3 | Q11: 119 | U11: -5.1 | V11: =ROUND(113/Y11,3) -> 0.837 | W11: =VLOOKUP('calcolo handicap'!B3,'elenco campi italiani'!$A$5:$S$906,5) -> 71 | X11: =VLOOKUP('calcolo handicap'!B3,'elenco campi italiani'!$A$5:$S$906,Z11) -> 70.8 | Y11: =VLOOKUP('calcolo handicap'!B3,'elenco campi italiani'!$A$5:$S$906,Z11+1) -> 135 | Z11: =VLOOKUP('calcolo handicap'!B5,'elenco campi italiani'!$Z$2:$AA$8,2) -> 10 | AA11: =IF('elenco campi italiani'!W11>=40,18,9) -> 18
A12: =_xlfn.TEXTJOIN(" ",TRUE,C12:D12) -> ALBARELLA 18 BUCHE | B12: 8 | C12: ALBARELLA | D12: 18 BUCHE | E12: 72 | H12: 72 | I12: 121 | J12: 70.5 | K12: 118 | L12: 68.2 | M12: 113 | N12: 73.8 | O12: 125 | P12: 72.5 | Q12: 121 | R12: 70 | S12: 116 | U12: -5
A13: ALBISOLA 18 Buche par 64 | B13: =1+B12 -> 9 | C13: ALBISOLA | D13: 18 Buche par 64 | E13: 64 | J13: 62.4 | K13: 105 | L13: 60.4 | M13: 99 | P13: 62.8 | Q13: 108 | R13: 62.8 | S13: 108 | U13: -4.9 | W13: PUNTI STB -36 GARA 18B | AA13: PUNTI STB -18 GARA 9B
A14: ALBISOLA 18 buche par 65 | B14: 10 | C14: ALBISOLA | D14: 18 buche par 65 | E14: 65 | J14: 62.6 | K14: 107 | L14: 60.6 | M14: 102 | P14: 63 | Q14: 109 | R14: 60.9 | S14: 105 | U14: -4.8 | W14: =IF(AA11=9,"GARA 9 BUCHE",'calcolo handicap'!B9-36) -> 1 | AA14: =IF('elenco campi italiani'!AA11=9,'calcolo handicap'!B9-18,"GARA 18 BUCHE") -> GARA 18 BUCHE
A15: ALBISOLA 18 buche par 66 | B15: 11 | C15: ALBISOLA | D15: 18 buche par 66 | E15: 66 | J15: 62.8 | K15: 108 | L15: 60.8 | M15: 102 | P15: 63.2 | Q15: 110 | U15: -4.7 | W15: AGS 18BUCHE | AA15: AGS 9BUCHE
A16: ALBISOLA 9 Buche par 32 | B16: 12 | C16: ALBISOLA | D16: 9 Buche par 32 | E16: 32 | J16: 31.2 | K16: 105 | L16: 30.2 | M16: 99 | P16: 31.4 | Q16: 108 | U16: -4.6 | W16: =IF(AA11=9,"GARA 9 BUCHE",ROUND(W11+'calcolo handicap'!D5-W14,0)) -> 85 | AA16: =IF(AA11=18,"GARA 18 BUCHE",ROUND(2*(W11+'calcolo handicap'!D5)+1-AA14,0)) -> GARA 18 BUCHE
A17: ALBISOLA 9 buche par 33 | B17: 13 | C17: ALBISOLA | D17: 9 buche par 33 | E17: 33 | J17: 31.4 | K17: 108 | L17: 30.4 | M17: 102 | P17: 31.6 | Q17: 110 | U17: -4.5 | W17: SD 18 BUCHE | AA17: SD 9 buche
A18: ALPINO 18 Buche | B18: 14 | C18: ALPINO | D18: 18 Buche | E18: 69 | H18: 67.9 | I18: 131 | J18: 66.1 | K18: 131 | L18: 64 | M18: 126 | N18: 69.9 | O18: 122 | P18: 68.3 | Q18: 118 | R18: 65.9 | S18: 113 | U18: -4.4 | W18: =IF(AA11=9,"GARA 9 BUCHE",+V11*(W16-X11-'calcolo handicap'!B11)) -> 11.8854 | AA18: =IF(AA11=18,"GARA 18 BUCHE",V11*(AA16-2*X11-'calcolo handicap'!B11/2)) -> GARA 18 BUCHE
A19: ALPINO Prime Nove | B19: 15 | C19: ALPINO | D19: Prime Nove | E19: 35 | H19: 34 | I19: 132 | J19: 33.1 | K19: 132 | L19: 31.9 | M19: 127 | N19: 35.1 | O19: 123 | P19: 34.3 | Q19: 118 | U19: -4.3
A20: ALPINO Seconde Nove | B20: 16 | C20: ALPINO | D20: Seconde Nove | E20: 34 | H20: 33.8 | I20: 131 | J20: 33.1 | K20: 131 | N20: 34.8 | O20: 122 | P20: 34 | Q20: 117 | U20: -4.2
A21: ALTA BADIA 18 Buche | B21: 17 | C21: ALTA BADIA | D21: 18 Buche | E21: 72 | H21: 69.5 | I21: 129 | N21: 70.4 | O21: 133 | U21: -4.1
A22: ALTA BADIA 9 Buche | B22: 18 | C22: ALTA BADIA | D22: 9 Buche | E22: 36 | H22: 34.8 | I22: 129 | N22: 35.2 | O22: 133 | U22: -4
A23: AMBROSIANO 18 Buche | B23: 19 | C23: AMBROSIANO | D23: 18 Buche | E23: 72 | H23: 73 | I23: 133 | J23: 71.9 | K23: 131 | L23: 67.5 | M23: 121 | N23: 75.3 | O23: 132 | P23: 73.7 | Q23: 128 | R23: 71.1 | S23: 122 | U23: -3.9
A24: AMBROSIANO Prime Nove | B24: 20 | C24: AMBROSIANO | D24: Prime Nove | E24: 36 | H24: 36.5 | I24: 133 | J24: 35.9 | K24: 131 | L24: 33.7 | M24: 126 | N24: 37.5 | O24: 128 | P24: 36.4 | Q24: 123 | R24: 35.1 | S24: 120 | U24: -3.8
A25: AMBROSIANO Seconde Nove | B25: 21 | C25: AMBROSIANO | D25: Seconde Nove | E25: 36 | H25: 36.5 | I25: 133 | J25: 36 | K25: 130 | L25: 33.9 | M25: 125 | N25: 37.8 | O25: 135 | P25: 37.2 | Q25: 133 | R25: 35.9 | S25: 130 | U25: -3.7
A26: ANTOGNOLLA 18 buche | B26: 22 | C26: ANTOGNOLLA | D26: 18 buche | E26: 71 | H26: 72.1 | I26: 129 | J26: 70.5 | K26: 125 | L26: 66.6 | M26: 116 | N26: 74.1 | O26: 125 | P26: 71.6 | Q26: 120 | R26: 67.4 | S26: 111 | U26: -3.6
A27: ANTOGNOLLA 9 buche 2019 | B27: 23 | C27: ANTOGNOLLA | D27: 9 buche 2019 | E27: 35 | J27: 34.8 | K27: 128 | L27: 33 | M27: 124 | P27: 35.4 | Q27: 123 | U27: -3.5
A28: ANTOGNOLLA prime nove | B28: 24 | C28: ANTOGNOLLA | D28: prime nove | E28: 36 | J28: 34.9 | K28: 132 | L28: 32.9 | M28: 127 | P28: 35.3 | Q28: 119 | U28: -3.4
A29: ANTOGNOLLA seconde nove | B29: 25 | C29: ANTOGNOLLA | D29: seconde nove | E29: 35 | J29: 35.6 | K29: 118 | L29: 33.7 | M29: 114 | P29: 36.3 | Q29: 120 | U29: -3.3
A30: AOSTA 18 Buche | B30: 26 | C30: AOSTA | D30: 18 Buche | E30: 62 | J30: 61.1 | K30: 112 | L30: 58.6 | M30: 106 | P30: 59.2 | Q30: 107 | R30: 59.2 | S30: 107 | U30: -3.2
A31: AOSTA 9 Buche | B31: 27 | C31: AOSTA | D31: 9 Buche | E31: 31 | J31: 30.6 | K31: 112 | L31: 29.3 | M31: 106 | P31: 29.6 | Q31: 107 | U31: -3.1
A32: APPIANO - CAREZZA 18 Buche | B32: 28 | C32: APPIANO - CAREZZA | D32: 18 Buche | E32: 70 | J32: 68.5 | K32: 126 | L32: 64.8 | M32: 117 | P32: 70.6 | Q32: 128 | R32: 67.6 | S32: 122 | U32: -3
A33: APPIANO - CAREZZA 18 buche | B33: 29 | C33: APPIANO - CAREZZA | D33: 18 buche | E33: 70 | F33: 74.1 | G33: 121 | H33: 72.4 | I33: 117 | J33: 70.2 | K33: 112 | L33: 67.4 | M33: 106 | N33: 71.4 | O33: 123 | P33: 68 | Q33: 116 | R33: 64.8 | S33: 109 | U33: -2.9
A34: APPIANO - CAREZZA Nove buche | B34: 30 | C34: APPIANO - CAREZZA | D34: Nove buche | E34: 35 | F34: 37.1 | G34: 121 | H34: 36.2 | I34: 117 | J34: 35.1 | K34: 112 | L34: 33.7 | M34: 105 | N34: 35.7 | O34: 123 | P34: 34 | Q34: 116 | R34: 32.4 | S34: 109 | U34: -2.8
A35: APPIANO - CAREZZA Nove Buche | B35: 31 | C35: APPIANO - CAREZZA | D35: Nove Buche | E35: 35 | J35: 34.3 | K35: 126 | L35: 32.4 | M35: 117 | P35: 35.3 | Q35: 128 | R35: 33.8 | S35: 122 | U35: -2.7
A36: ARCHI CLAUDIO 18 Buche | B36: 32 | C36: ARCHI CLAUDIO | D36: 18 Buche | E36: 66 | J36: 65.9 | K36: 112 | L36: 62.9 | M36: 105 | P36: 66.9 | Q36: 111 | R36: 63.8 | S36: 105 | U36: -2.6
A37: ARCHI CLAUDIO 18 buche par 64 | B37: 33 | C37: ARCHI CLAUDIO | D37: 18 buche par 64 | E37: 64 | J37: 64.6 | K37: 114 | L37: 61.4 | M37: 107 | P37: 65.4 | Q37: 113 | R37: 62.2 | S37: 107 | U37: -2.5
A38: ARCHI CLAUDIO 9 buche par 32 | B38: 34 | C38: ARCHI CLAUDIO | D38: 9 buche par 32 | E38: 32 | J38: 32.3 | K38: 114 | L38: 30.7 | M38: 107 | P38: 32.7 | Q38: 113 | R38: 31.1 | S38: 107 | U38: -2.4
A39: ARCHI CLAUDIO Prime Nove | B39: =1+B38 -> 35 | C39: ARCHI CLAUDIO | D39: Prime Nove | E39: 33 | J39: 33 | K39: 112 | L39: 31.4 | M39: 105 | P39: 33.5 | Q39: 111 | R39: 31.9 | S39: 105 | U39: -2.3
A40: ARCHI CLAUDIO US KIDS | B40: 36 | C40: ARCHI CLAUDIO | D40: US KIDS | E40: 33 | J40: 31.5 | K40: 106 | P40: 33.5 | Q40: 111 | U40: -2.2
A41: ARENZANO 18 Buche | B41: 37 | C41: ARENZANO | D41: 18 Buche | E41: 72 | J41: 71 | K41: 133 | L41: 67.9 | M41: 126 | P41: 73 | Q41: 133 | R41: 70.7 | S41: 128 | U41: -2.1
A42: ARENZANO Nove Buche | B42: 38 | C42: ARENZANO | D42: Nove Buche | E42: 36 | J42: 35.5 | K42: 133 | L42: 34 | M42: 126 | P42: 36.5 | Q42: 133 | R42: 35.4 | S42: 128 | U42: -2
A43: ARGENTA 18 Buche | B43: 39 | C43: ARGENTA | D43: 18 Buche | E43: 72 | H43: 72.8 | I43: 126 | J43: 71.9 | K43: 125 | L43: 68.3 | M43: 117 | N43: 74.4 | O43: 129 | P43: 73.6 | Q43: 128 | R43: 70.8 | S43: 122 | U43: -1.9
A44: ARGENTA Prime Nove | B44: 40 | C44: ARGENTA | D44: Prime Nove | E44: 36 | H44: 36.2 | I44: 129 | J44: 35.7 | K44: 127 | L44: 34 | M44: 123 | N44: 37.1 | O44: 129 | P44: 36.7 | Q44: 128 | R44: 35.2 | S44: 125 | U44: -1.8
A45: ARGENTA Seconde Nove | B45: 41 | C45: ARGENTA | D45: Seconde Nove | E45: 36 | H45: 36.6 | I45: 124 | J45: 36.2 | K45: 122 | L45: 34.2 | M45: 117 | N45: 37.3 | O45: 130 | P45: 36.9 | Q45: 128 | R45: 35.6 | S45: 125 | U45: -1.7
A46: ARGENTARIO 18 Buche | B46: 42 | C46: ARGENTARIO | D46: 18 Buche | E46: 71 | H46: 74.1 | I46: 141 | J46: 72.4 | K46: 138 | L46: 69.5 | M46: 131 | N46: 76.4 | O46: 143 | P46: 72.9 | Q46: 135 | R46: 69.9 | S46: 129 | U46: -1.6
A47: ARGENTARIO Prime Nove | B47: 43 | C47: ARGENTARIO | D47: Prime Nove | E47: 36 | H47: 36.8 | I47: 143 | J47: 36 | K47: 141 | L47: 34.5 | M47: 138 | N47: 38.1 | O47: 144 | P47: 36.5 | Q47: 137 | R47: 35 | S47: 134 | U47: -1.5
A48: ARGENTARIO Seconde Nove | B48: 44 | C48: ARGENTARIO | D48: Seconde Nove | E48: 35 | H48: 37.3 | I48: 139 | J48: 36.4 | K48: 135 | L48: 34.9 | M48: 132 | N48: 38.3 | O48: 141 | P48: 36.4 | Q48: 134 | R48: 34.9 | S48: 131 | U48: -1.4
A49: ARONA 18 buche | B49: 45 | C49: ARONA | D49: 18 buche | E49: 70 | J49: 68.8 | K49: 129 | L49: 66 | M49: 123 | P49: 70 | Q49: 125 | U49: -1.3
A50: ARONA Prime Nove | B50: 46 | C50: ARONA | D50: Prime Nove | E50: 35 | J50: 34 | K50: 131 | L50: 32.5 | M50: 124 | P50: 34.8 | Q50: 120 | U50: -1.2
A51: ARZAGA Gary P. 1-9 | B51: 47 | C51: ARZAGA | D51: Gary P. 1-9 | E51: 36 | J51: 35 | K51: 128 | L51: 33.7 | M51: 125 | P51: 35.7 | Q51: 123 | R51: 34.3 | S51: 120 | U51: -1.1
A52: ARZAGA Gary Player | B52: 48 | C52: ARZAGA | D52: Gary Player | E52: 72 | H52: 71.8 | I52: 133 | J52: 69.9 | K52: 128 | N52: 72.2 | O52: 125 | P52: 71.4 | Q52: 123 | U52: -1
A53: ARZAGA GP1 + JN1 | B53: 49 | C53: ARZAGA | D53: GP1 + JN1 | E53: 72 | H53: 72.5 | I53: 130 | J53: 70.9 | K53: 125 | L53: 68.2 | M53: 119 | N53: 72.3 | O53: 124 | P53: 72.1 | Q53: 124 | R53: 69.4 | S53: 118 | U53: -0.9
A54: ARZAGA GP1 + JN2 | B54: 50 | C54: ARZAGA | D54: GP1 + JN2 | E54: 72 | H54: 72.6 | I54: 134 | J54: 70.8 | K54: 129 | L54: 67.9 | M54: 122 | N54: 73.5 | O54: 129 | P54: 72.1 | Q54: 127 | R54: 69.4 | S54: 121 | U54: -0.8
A55: ARZAGA Jack N. 1-9 | B55: 51 | C55: ARZAGA | D55: Jack N. 1-9 | E55: 36 | J55: 35.9 | K55: 124 | L55: 34.5 | M55: 121 | P55: 36.4 | Q55: 125 | R55: 35 | S55: 122 | U55: -0.7
A56: ARZAGA Jack Nicklaus | B56: 52 | C56: ARZAGA | D56: Jack Nicklaus | E56: 72 | H56: 73.2 | I56: 130 | J56: 71.7 | K56: 126 | L56: 68.8 | M56: 119 | N56: 73.6 | O56: 129 | P56: 72.8 | Q56: 128 | R56: 70 | S56: 122 | U56: -0.6
A57: ASIAGO 18 Buche | B57: 53 | C57: ASIAGO | D57: 18 Buche | E57: 71 | H57: 72.5 | I57: 127 | J57: 70.2 | K57: 124 | L57: 66.4 | M57: 115 | N57: 73.5 | O57: 127 | P57: 70.8 | Q57: 124 | R57: 67.7 | S57: 117 | U57: -0.5
A58: ASIAGO Prime Nove | B58: 54 | C58: ASIAGO | D58: Prime Nove | E58: 36 | H58: 36.5 | I58: 128 | J58: 35.3 | K58: 121 | L58: 33.7 | M58: 117 | N58: 37.3 | O58: 128 | P58: 35.5 | Q58: 125 | R58: 34.1 | S58: 122 | U58: -0.4
A59: ASIAGO Seconde Nove | B59: 55 | C59: ASIAGO | D59: Seconde Nove | E59: 35 | H59: 36 | I59: 125 | J59: 34.9 | K59: 126 | L59: 32.9 | M59: 121 | N59: 36.2 | O59: 126 | P59: 35.3 | Q59: 123 | R59: 33.6 | S59: 119 | U59: -0.3
A60: ASOLO Giallo-Giallo | B60: 56 | C60: ASOLO | D60: Giallo-Giallo | E60: 72 | H60: 73.1 | I60: 136 | J60: 71.6 | K60: 132 | N60: 74.8 | O60: 131 | P60: 72.8 | Q60: 127 | U60: -0.2
A61: ASOLO Giallo-Verde | B61: 57 | C61: ASOLO | D61: Giallo-Verde | E61: 72 | H61: 73.2 | I61: 137 | J61: 71.6 | K61: 131 | L61: 68.7 | M61: 124 | N61: 75.1 | O61: 137 | P61: 72.8 | Q61: 132 | R61: 69.2 | S61: 125 | U61: -0.1
A62: ASOLO Percorso Giallo 9 buche | B62: 58 | C62: ASOLO | D62: Percorso Giallo 9 buche | E62: 36 | H62: 36.5 | I62: 136 | J62: 35.8 | K62: 132 | L62: 34.4 | M62: 126 | N62: 37.4 | O62: 131 | P62: 36.4 | Q62: 127 | R62: 35.3 | S62: 121 | U62: 0
A63: ASOLO Percorso Rosso 9 buche | B63: 59 | C63: ASOLO | D63: Percorso Rosso 9 buche | E63: 36 | H63: 36.8 | I63: 141 | J63: 35.8 | K63: 137 | L63: 34.3 | M63: 129 | N63: 37.8 | O63: 129 | P63: 36.7 | Q63: 122 | R63: 35.2 | S63: 116 | U63: 0.1
A64: ASOLO Percorso Verde 9 buche | B64: 60 | C64: ASOLO | D64: Percorso Verde 9 buche | E64: 36 | H64: 36.7 | I64: 138 | J64: 35.7 | K64: 133 | L64: 34.3 | M64: 127 | N64: 37.6 | O64: 143 | P64: 36.5 | Q64: 137 | R64: 34.5 | S64: 129 | U64: 0.2
A65: ASOLO Rosso-Giallo | B65: 61 | C65: ASOLO | D65: Rosso-Giallo | E65: 72 | H65: 73.3 | I65: 138 | J65: 71.7 | K65: 134 | L65: 68.8 | M65: 127 | N65: 75.2 | O65: 130 | P65: 73.1 | Q65: 124 | R65: 70 | S65: 118 | U65: 0.3
A66: ASOLO Rosso-Verde | B66: 62 | C66: ASOLO | D66: Rosso-Verde | E66: 72 | H66: 73.5 | I66: 139 | J66: 71.6 | K66: 135 | L66: 68.7 | M66: 128 | N66: 75.4 | O66: 137 | P66: 73.1 | Q66: 129 | R66: 69.5 | S66: 121 | U66: 0.4
A67: ASOLO Verde-Rosso | B67: 63 | C67: ASOLO | D67: Verde-Rosso | E67: 72 | H67: 73.5 | I67: 139 | N67: 75.4 | O67: 137 | U67: 0.5
A68: BAGNAIA 18 Buche | B68: 64 | C68: BAGNAIA | D68: 18 Buche | E68: 71 | H68: 73.6 | I68: 147 | J68: 71.2 | K68: 141 | L68: 68.8 | M68: 135 | N68: 74.9 | O68: 141 | P68: 72.2 | Q68: 135 | R68: 69.7 | S68: 130 | U68: 0.6
A69: BAGNAIA Prime Nove | B69: =1+B68 -> 65 | C69: BAGNAIA | D69: Prime Nove | E69: 36 | H69: 37 | I69: 153 | J69: 35.8 | K69: 147 | L69: 34.6 | M69: 141 | N69: 37.3 | O69: 144 | P69: 35.9 | Q69: 138 | R69: 34.6 | S69: 133 | U69: =ROUND(0.1+U68,1) -> 0.7
A70: BAGNAIA Seconde Nove | B70: 66 | C70: BAGNAIA | D70: Seconde Nove | E70: 35 | H70: 36.6 | I70: 141 | J70: 35.4 | K70: 135 | L70: 34.2 | M70: 129 | N70: 37.6 | O70: 138 | P70: 36.3 | Q70: 132 | R70: 35 | S70: 127 | U70: 0.8
A71: BARIALTO 18 Buche | B71: 67 | C71: BARIALTO | D71: 18 Buche | E71: 70 | J71: 70.1 | K71: 125 | L71: 66 | M71: 116 | P71: 70.3 | Q71: 120 | R71: 66.2 | S71: 111 | U71: 0.9
A72: =_xlfn.TEXTJOIN(" ",TRUE,C72:D72) -> BARIALTO Prime Nove | B72: 68 | C72: BARIALTO | D72: Prime Nove | E72: 36 | J72: 35.2 | K72: 128 | L72: 33.1 | M72: 123 | P72: 35.3 | Q72: 120 | R72: 33.3 | S72: 116 | U72: 1
A73: BARIALTO Seconde Nove | B73: 69 | C73: BARIALTO | D73: Seconde Nove | E73: 34 | J73: 34.9 | K73: 122 | L73: 33 | M73: 117 | P73: 35 | Q73: 120 | R73: 32.9 | S73: 116 | U73: 1.1
A74: BARLASSINA Campionato | B74: 70 | C74: BARLASSINA | D74: Campionato | E74: 72 | H74: 72.9 | I74: 135 | J74: 71.6 | K74: 132 | L74: 68.8 | M74: 126 | N74: 74.3 | O74: 126 | P74: 74.1 | Q74: 126 | R74: 73.3 | S74: 124 | U74: 1.2
A75: BARLASSINA Prime Nove | B75: 71 | C75: BARLASSINA | D75: Prime Nove | E75: 36 | H75: 35.9 | I75: 133 | J75: 35.3 | K75: 130 | L75: 34.2 | M75: 125 | N75: 37 | O75: 121 | P75: 36.6 | Q75: 119 | R75: 36.2 | S75: 118 | U75: 1.3
A76: BARLASSINA Seconde Nove | B76: 72 | C76: BARLASSINA | D76: Seconde Nove | E76: 36 | H76: 37 | I76: 138 | J76: 36.3 | K76: 135 | N76: 37.3 | O76: 132 | P76: 37.5 | Q76: 131 | U76: 1.4
A77: BELLOSGUARDO monnalisa 70 | B77: 73 | C77: BELLOSGUARDO | D77: monnalisa 70 | E77: 70 | J77: 72.4 | K77: 128 | L77: 68.8 | M77: 120 | P77: 72.6 | Q77: 124 | R77: 69.4 | S77: 118 | U77: 1.5
A78: BELLOSGUARDO Monnalisa New | B78: 74 | C78: BELLOSGUARDO | D78: Monnalisa New | E78: 71 | H78: 74.6 | I78: 133 | J78: 72.8 | K78: 129 | L78: 69.2 | M78: 121 | N78: 76.6 | O78: 133 | P78: 72.9 | Q78: 125 | R78: 69.6 | S78: 118 | U78: 1.6
A79: BELLOSGUARDO Monnalisa New Prime Nove | B79: 75 | C79: BELLOSGUARDO | D79: Monnalisa New Prime Nove | E79: 36 | J79: 36.3 | K79: 129 | L79: 34.6 | M79: 121 | P79: 36.5 | Q79: 125 | R79: 34.8 | S79: 118 | U79: 1.7
A80: BELLOSGUARDO Monnalisa par 35 | B80: 76 | C80: BELLOSGUARDO | D80: Monnalisa par 35 | E80: 35 | J80: 35.9 | K80: 128 | L80: 34.2 | M80: 120 | P80: 36.2 | Q80: 124 | R80: 34.6 | S80: 118 | U80: 1.8
A81: BERGAMO ALBENZA Blu | B81: 77 | C81: BERGAMO ALBENZA | D81: Blu | E81: 36 | J81: 35.8 | K81: 137 | L81: 34.7 | M81: 132 | P81: 36.9 | Q81: 127 | R81: 36 | S81: 125 | U81: 1.9
A82: BERGAMO ALBENZA Blu-Giallo | B82: 78 | C82: BERGAMO ALBENZA | D82: Blu-Giallo | E82: 72 | H82: 73.1 | I82: 137 | J82: 71.8 | K82: 136 | L82: 69.5 | M82: 131 | N82: 75.5 | O82: 133 | P82: 74.7 | Q82: 131 | R82: 72.1 | S82: 125 | U82: 2
A83: BERGAMO ALBENZA Giallo | B83: 79 | C83: BERGAMO ALBENZA | D83: Giallo | E83: 36 | J83: 36 | K83: 135 | L83: 34.8 | M83: 129 | P83: 37.8 | Q83: 135 | R83: 36.1 | S83: 125 | U83: 2.1
A84: BERGAMO ALBENZA Rosso | B84: 80 | C84: BERGAMO ALBENZA | D84: Rosso | E84: 36 | J84: 35.8 | K84: 136 | L84: 34.7 | M84: 131 | P84: 36.1 | Q84: 132 | R84: 35.9 | S84: 131 | U84: 2.2
A85: BERGAMO ALBENZA Rosso-Blu | B85: 81 | C85: BERGAMO ALBENZA | D85: Rosso-Blu | E85: 72 | H85: 72.6 | I85: 137 | J85: 70.9 | K85: 134 | L85: 69.4 | M85: 132 | N85: 74.4 | O85: 134 | P85: 73.4 | Q85: 131 | R85: 71.9 | S85: 128 | U85: 2.3
A86: BERGAMO ALBENZA Rosso-Giallo | B86: 82 | C86: BERGAMO ALBENZA | D86: Rosso-Giallo | E86: 72 | H86: 72.5 | I86: 135 | J86: 71.1 | K86: 133 | L86: 69.5 | M86: 130 | N86: 74.6 | O86: 135 | P86: 73.9 | Q86: 132 | R86: 72 | S86: 128 | U86: 2.4
A87: BIELLA BETULLE 18 buche 2018 | B87: 83 | C87: BIELLA BETULLE | D87: 18 buche 2018 | E87: 73 | H87: 75 | I87: 145 | J87: 72.9 | K87: 142 | L87: 69.6 | M87: 134 | N87: 76.5 | O87: 138 | P87: 74.7 | Q87: 131 | R87: 70.5 | S87: 122 | U87: 2.5
A88: BIELLA BETULLE Le Betulle | B88: 84 | C88: BIELLA BETULLE | D88: Le Betulle | E88: 73 | H88: 74.8 | I88: 144 | J88: 72.8 | K88: 140 | L88: 69.3 | M88: 132 | N88: 76.3 | O88: 136 | P88: 74.4 | Q88: 130 | R88: 70 | S88: 121 | U88: 2.6
A89: BIELLA BETULLE prime 9 | B89: 85 | C89: BIELLA BETULLE | D89: prime 9 | E89: 36 | H89: 37.4 | I89: 146 | J89: 36.4 | K89: 138 | L89: 33.4 | M89: 124 | N89: 37.7 | O89: 133 | P89: 37 | Q89: 128 | R89: 33.6 | S89: 114 | U89: 2.7
A90: BOGLIACO 18 Buche | B90: 86 | C90: BOGLIACO | D90: 18 Buche | E90: 70 | J90: 70.3 | K90: 141 | L90: 68.1 | M90: 136 | P90: 72 | Q90: 134 | R90: 69.4 | S90: 129 | U90: 2.8
A91: BOGLIACO Prime Nove | B91: 87 | C91: BOGLIACO | D91: Prime Nove | E91: 35 | J91: 34.7 | K91: 141 | L91: 33.7 | M91: 136 | P91: 35.8 | Q91: 130 | R91: 35 | S91: 127 | U91: 2.9
A92: BOGLIACO Seconde Nove | B92: 88 | C92: BOGLIACO | D92: Seconde Nove | E92: 35 | J92: 35.6 | K92: 140 | L92: 34.4 | M92: 134 | P92: 36.2 | Q92: 138 | R92: 35.3 | S92: 134 | U92: 3
A93: BOGOGNO 1° Nove - Conte | B93: 89 | C93: BOGOGNO | D93: 1° Nove - Conte | E93: 36 | J93: 35.9 | K93: 130 | L93: 34.5 | M93: 127 | P93: 35.7 | Q93: 126 | R93: 34.2 | S93: 123 | U93: 3.1
A94: BOGOGNO 2° Nove - Conte | B94: 90 | C94: BOGOGNO | D94: 2° Nove - Conte | E94: 36 | J94: 35.1 | K94: 125 | L94: 33.9 | M94: 122 | P94: 35.9 | Q94: 120 | R94: 34.4 | S94: 117 | U94: 3.2
A95: BOGOGNO Bonora | B95: 91 | C95: BOGOGNO | D95: Bonora | E95: 72 | H95: 74.4 | I95: 140 | J95: 72.5 | K95: 136 | L95: 69.4 | M95: 129 | N95: 74.9 | O95: 136 | P95: 71.7 | Q95: 130 | R95: 68.8 | S95: 124 | U95: 3.3
A96: BOGOGNO del Conte | B96: 92 | C96: BOGOGNO | D96: del Conte | E96: 72 | H96: 73.2 | I96: 131 | J96: 71 | K96: 128 | L96: 68.4 | M96: 122 | N96: 74.1 | O96: 129 | P96: 71.6 | Q96: 123 | R96: 68.6 | S96: 117 | U96: 3.4
A97: BOGOGNO Prime Nove - Bonora | B97: 93 | C97: BOGOGNO | D97: Prime Nove - Bonora | E97: 36 | J97: 35.9 | K97: 132 | L97: 34.4 | M97: 125 | P97: 35.8 | Q97: 130 | R97: 34.3 | S97: 124 | U97: 3.5
A98: BOGOGNO Seconde Nove - Bonora | B98: 94 | C98: BOGOGNO | D98: Seconde Nove - Bonora | E98: 36 | J98: 36.6 | K98: 140 | L98: 35 | M98: 133 | P98: 36 | Q98: 130 | U98: 3.6
A99: BOLOGNA 18 Buche | B99: 95 | C99: BOLOGNA | D99: 18 Buche | E99: 72 | H99: 72 | I99: 124 | J99: 71.7 | K99: 127 | L99: 68.8 | M99: 120 | N99: 74.3 | O99: 128 | P99: 73.7 | Q99: 125 | R99: 70.8 | S99: 119 | U99: 3.7
A100: BOLOGNA PAR 71 CAMPIONATO | B100: 96 | C100: BOLOGNA | D100: PAR 71 CAMPIONATO | E100: 71 | H100: 72 | I100: 124 | J100: 71.3 | K100: 125 | L100: 68.4 | M100: 119 | N100: 74.3 | O100: 128 | P100: 73.3 | Q100: 124 | R100: 70.4 | S100: 118 | U100: 3.8
A101: BOLOGNA par 71. | B101: 97 | C101: BOLOGNA | D101: par 71. | E101: 71 | H101: 71.6 | I101: 125 | J101: 70.9 | K101: 126 | L101: 68 | M101: 120 | N101: 73.8 | O101: 128 | P101: 72.8 | Q101: 124 | R101: 69.9 | S101: 118 | U101: 3.9
A102: BOLOGNA Prime Nove | B102: 98 | C102: BOLOGNA | D102: Prime Nove | E102: 36 | H102: 36 | I102: 133 | J102: 35.7 | K102: 135 | L102: 34.4 | M102: 132 | N102: 37.2 | O102: 135 | P102: 36.7 | Q102: 129 | R102: 35.2 | S102: 126 | U102: 4
A103: BOLOGNA Seconde Nove | B103: 99 | C103: BOLOGNA | D103: Seconde Nove | E103: 36 | H103: 36.3 | I103: 119 | J103: 36.1 | K103: 118 | L103: 34.6 | M103: 114 | N103: 37.5 | O103: 121 | P103: 37.1 | Q103: 120 | R103: 35.7 | S103: 117 | U103: 4.1
A104: BOLOGNA seconde nove par 35 | B104: 100 | C104: BOLOGNA | D104: seconde nove par 35 | E104: 35 | H104: 35.6 | I104: 117 | J104: 35.2 | K104: 117 | L104: 33.6 | M104: 108 | N104: 36.6 | O104: 121 | P104: 36.1 | Q104: 119 | R104: 34.7 | S104: 110 | U104: 4.2
A105: BORGO CAMUZZAGO Nove Buche par 27 | B105: 101 | C105: BORGO CAMUZZAGO | D105: Nove Buche par 27 | E105: 27 | J105: 28.9 | K105: 97 | L105: 28.9 | M105: 97 | P105: 30.7 | Q105: 96 | U105: 4.3
A106: BORGO CAMUZZAGO 18 buche | B106: 102 | C106: BORGO CAMUZZAGO | D106: 18 buche | E106: 64 | J106: 63.4 | K106: 112 | L106: 62.1 | M106: 109 | P106: 65 | Q106: 105 | U106: 4.4
A107: BORGO CAMUZZAGO 18 Buche - Villa Paradiso | B107: 103 | C107: BORGO CAMUZZAGO | D107: 18 Buche - Villa Paradiso | E107: 72 | H107: 74.7 | I107: 133 | J107: 72.7 | K107: 132 | L107: 70 | M107: 126 | N107: 76.6 | O107: 137 | P107: 74.5 | Q107: 131 | R107: 71.6 | S107: 125 | U107: 4.5
A108: BORGO CAMUZZAGO 18 Buche par54 | B108: 104 | C108: BORGO CAMUZZAGO | D108: 18 Buche par54 | E108: 54 | J108: 57.8 | K108: 97 | L108: 57.8 | M108: 97 | P108: 61.4 | Q108: 96 | U108: 4.6
A109: BORGO CAMUZZAGO 9 buche | B109: 105 | C109: BORGO CAMUZZAGO | D109: 9 buche | E109: 32 | J109: 31.7 | K109: 112 | L109: 31.1 | M109: 109 | P109: 32.5 | Q109: 105 | U109: 4.7
A110: BORGO CAMUZZAGO Prime Nove - Villa Paradiso | B110: 106 | C110: BORGO CAMUZZAGO | D110: Prime Nove - Villa Paradiso | E110: 36 | J110: 36.6 | K110: 128 | L110: 35.8 | M110: 122 | P110: 37.5 | Q110: 131 | R110: 36.6 | S110: 125 | U110: 4.8
A111: BORGO CAMUZZAGO Seconde Nove - Villa Paradiso | B111: 107 | C111: BORGO CAMUZZAGO | D111: Seconde Nove - Villa Paradiso | E111: 36 | J111: 36.1 | K111: 135 | L111: 34.7 | M111: 129 | P111: 37 | Q111: 131 | R111: 35.5 | S111: 124 | U111: 4.9
A112: BORMIO 18 Buche | B112: 108 | C112: BORMIO | D112: 18 Buche | E112: 66 | J112: 62.4 | K112: 111 | L112: 60.3 | M112: 106 | P112: 63 | Q112: 121 | R112: 63 | S112: 121 | U112: 5
A113: BORMIO Nove Buche | B113: 109 | C113: BORMIO | D113: Nove Buche | E113: 33 | J113: 31.2 | K113: 111 | L113: 30.1 | M113: 106 | P113: 31.5 | Q113: 121 | U113: 5.1
A114: BORMIO provv 18 buche | B114: 110 | C114: BORMIO | D114: provv 18 buche | E114: 62 | J114: 60.6 | K114: 112 | L114: 58.4 | M114: 107 | P114: 60.4 | Q114: 111 | U114: 5.2
A115: BOTANIC SA CUBA 18 buche | B115: 111 | C115: BOTANIC SA CUBA | D115: 18 buche | E115: 70 | J115: 66.2 | K115: 118 | L115: 64.7 | M115: 114 | P115: 68.6 | Q115: 122 | R115: 68.6 | S115: 122 | U115: 5.3
A116: BOTANIC SA CUBA 9 buche | B116: 112 | C116: BOTANIC SA CUBA | D116: 9 buche | E116: 35 | J116: 33.1 | K116: 118 | L116: 32.4 | M116: 114 | P116: 34.3 | Q116: 122 | U116: 5.4
A117: BOVES 18 Buche | B117: 113 | C117: BOVES | D117: 18 Buche | E117: 72 | H117: 72.2 | I117: 129 | J117: 69.2 | K117: 125 | L117: 65.6 | M117: 117 | N117: 73.4 | O117: 127 | P117: 70.2 | Q117: 119 | R117: 67.6 | S117: 114 | U117: 5.5
A118: BOVES Prime Nove | B118: 114 | C118: BOVES | D118: Prime Nove | E118: 36 | H118: 36 | I118: 120 | J118: 34.8 | K118: 116 | L118: 32.9 | M118: 112 | N118: 36.6 | O118: 125 | P118: 35 | Q118: 116 | R118: 33.6 | S118: 113 | U118: 5.6
A119: BOVES Seconde Nove | B119: 115 | C119: BOVES | D119: Seconde Nove | E119: 36 | H119: 36.2 | I119: 137 | J119: 34.5 | K119: 134 | L119: 32.8 | M119: 130 | N119: 36.8 | O119: 129 | P119: 35.3 | Q119: 121 | R119: 34.1 | S119: 118 | U119: 5.7
A120: BRIANZA Brianza | B120: 116 | C120: BRIANZA | D120: Brianza | E120: 72 | J120: 71.4 | K120: 135 | L120: 69 | M120: 129 | P120: 73.1 | Q120: 134 | R120: 70.6 | S120: 129 | U120: 5.8
A121: BRIANZA Prime Nove | B121: 117 | C121: BRIANZA | D121: Prime Nove | E121: 35 | J121: 34.6 | K121: 135 | L121: 33.5 | M121: 129 | P121: 35.5 | Q121: 133 | R121: 34.3 | S121: 129 | U121: 5.9
A122: BRIANZA Seconde Nove | B122: 118 | C122: BRIANZA | D122: Seconde Nove | E122: 37 | J122: 36.7 | K122: 135 | L122: 35.4 | M122: 129 | P122: 37.5 | Q122: 134 | R122: 36.2 | S122: 129 | U122: 6
A123: BUENA VISTA 18 BUCHE | B123: 119 | C123: BUENA VISTA | D123: 18 BUCHE | E123: 60 | J123: 60 | K123: 101 | L123: 59.6 | M123: 100 | P123: 60.6 | Q123: 102 | U123: 6.1
A124: BUENA VISTA 9 buche | B124: 120 | C124: BUENA VISTA | D124: 9 buche | E124: 30 | J124: 30 | K124: 101 | L124: 29.8 | M124: 100 | P124: 30.3 | Q124: 102 | U124: 6.2
A125: CA' AMATA 18 Buche | B125: 121 | C125: CA' AMATA | D125: 18 Buche | E125: 71 | F125: 72.3 | G125: 136 | H125: 72.2 | I125: 136 | J125: 70.6 | K125: 132 | L125: 68.2 | M125: 126 | N125: 73.5 | O125: 136 | P125: 72.3 | Q125: 133 | R125: 69.8 | S125: 128 | U125: 6.3
A126: CA' AMATA Prime Nove | B126: 122 | C126: CA' AMATA | D126: Prime Nove | E126: 36 | H126: 36.2 | I126: 139 | J126: 35.4 | K126: 135 | L126: 34.2 | M126: 129 | N126: 36.9 | O126: 139 | P126: 36.3 | Q126: 134 | R126: 35 | S126: 129 | U126: 6.4
A127: CA' AMATA Seconde Nove | B127: 123 | C127: CA' AMATA | D127: Seconde Nove | E127: 35 | F127: 36.1 | G127: 133 | H127: 36 | I127: 133 | J127: 35.2 | K127: 129 | L127: 34 | M127: 123 | N127: 36.6 | O127: 133 | P127: 36 | Q127: 131 | R127: 34.8 | S127: 126 | U127: 6.5
A128: CA' LAURA 9 Buche | B128: 124 | C128: CA' LAURA | D128: 9 Buche | E128: 28 | J128: 29.3 | K128: 101 | P128: 29.5 | Q128: 93 | U128: 6.6
A129: CA' LAURA old course | B129: 125 | C129: CA' LAURA | D129: old course | E129: 56 | J129: 58.6 | K129: 101 | L129: 58.1 | M129: 100 | P129: 59 | Q129: 93 | U129: 6.7
A130: CA' NAVE 18 Buche | B130: 126 | C130: CA' NAVE | D130: 18 Buche | E130: 72 | H130: 73.5 | I130: 130 | J130: 72 | K130: 128 | L130: 69 | M130: 121 | N130: 74.4 | O130: 135 | P130: 73.5 | Q130: 132 | R130: 70.6 | S130: 126 | U130: 6.8
A131: CA' NAVE Prime Nove | B131: 127 | C131: CA' NAVE | D131: Prime Nove | E131: 36 | J131: 36.3 | K131: 129 | L131: 34.8 | M131: 122 | P131: 37.3 | Q131: 134 | R131: 35.8 | S131: 128 | U131: 6.9
A132: CA' NAVE Seconde Nove | B132: 128 | C132: CA' NAVE | D132: Seconde Nove | E132: 36 | J132: 35.7 | K132: 127 | L132: 34.2 | M132: 120 | P132: 36.2 | Q132: 130 | R132: 34.7 | S132: 124 | U132: 7
A133: CA' ULIVI 18 Buche | B133: =1+B132 -> 129 | C133: CA' ULIVI | D133: 18 Buche | E133: 72 | H133: 71.3 | I133: 124 | J133: 70 | K133: 122 | L133: 69.1 | M133: 120 | N133: 73.2 | O133: 122 | P133: 71.9 | Q133: 119 | U133: =ROUND(0.1+U132,1) -> 7.1
A134: CA' ULIVI Mirabello | B134: 130 | C134: CA' ULIVI | D134: Mirabello | E134: 62 | J134: 62.2 | K134: 112 | L134: 60.3 | M134: 108 | P134: 63.4 | Q134: 108 | R134: 63.4 | S134: 108 | U134: 7.2
A135: CA' ULIVI Mirabello 9 B. | B135: 131 | C135: CA' ULIVI | D135: Mirabello 9 B. | E135: 31 | J135: 31.1 | K135: 112 | L135: 30.1 | M135: 108 | P135: 31.7 | Q135: 108 | U135: 7.3
A136: =_xlfn.TEXTJOIN(" ",TRUE,C136:D136) -> CAGLIARI 18 BUCHE 2017 | B136: 132 | C136: CAGLIARI | D136: 18 BUCHE 2017 | E136: 72 | J136: 70.6 | K136: 126 | L136: 68.4 | M136: 124 | P136: 72.4 | Q136: 134 | R136: 69.9 | S136: 129 | U136: 7.4
A137: CAGLIARI 9 BUCHE 2017 | B137: 133 | C137: CAGLIARI | D137: 9 BUCHE 2017 | E137: 36 | J137: 35.3 | K137: 126 | L137: 34.2 | M137: 124 | P137: 36.2 | Q137: 134 | R137: 34.9 | S137: 131 | U137: 7.5
A138: CAMPODOGLIO 18 buche 2019 | B138: 134 | C138: CAMPODOGLIO | D138: 18 buche 2019 | E138: 72 | H138: 71.6 | I138: 123 | J138: 70 | K138: 121 | L138: 65.8 | M138: 111 | N138: 73 | O138: 126 | P138: 71 | Q138: 120 | R138: 67.6 | S138: 113 | U138: 7.6
A139: CAMPODOGLIO 18 buche par 70 | B139: 135 | C139: CAMPODOGLIO | D139: 18 buche par 70 | E139: 70 | H139: 71.4 | I139: 123 | J139: 69.6 | K139: 121 | L139: 65.5 | M139: 112 | N139: 72.8 | O139: 125 | P139: 70.4 | Q139: 120 | U139: 7.7
A140: CAMPODOGLIO 18 buche par 71 | B140: 136 | C140: CAMPODOGLIO | D140: 18 buche par 71 | E140: 71 | H140: 71.5 | I140: 123 | J140: 69.8 | K140: 121 | N140: 72.9 | O140: 126 | P140: 70.7 | Q140: 120 | U140: 7.8
A141: CAMPODOGLIO par 35 2019 | B141: 137 | C141: CAMPODOGLIO | D141: par 35 2019 | E141: 35 | H141: 35.7 | I141: 123 | J141: 34.8 | K141: 121 | L141: 32.8 | M141: 116 | N141: 36.4 | O141: 125 | P141: 35.2 | Q141: 120 | U141: 7.9
A142: CAMPODOGLIO par 36 2019 | B142: 138 | C142: CAMPODOGLIO | D142: par 36 2019 | E142: 36 | H142: 35.8 | I142: 123 | J142: 35 | K142: 121 | L142: 33 | M142: 116 | N142: 36.5 | O142: 126 | P142: 35.5 | Q142: 120 | R142: 33.8 | S142: 116 | U142: 8
A143: CANSIGLIO 18 Buche | B143: 139 | C143: CANSIGLIO | D143: 18 Buche | E143: 71 | H143: 71.5 | I143: 133 | J143: 70 | K143: 129 | L143: 66.4 | M143: 121 | N143: 73.5 | O143: 125 | P143: 70.9 | Q143: 119 | R143: 67 | S143: 111 | U143: 8.1
A144: CANSIGLIO Prime Nove | B144: 140 | C144: CANSIGLIO | D144: Prime Nove | E144: 35 | J144: 34.2 | K144: 126 | L144: 32.6 | M144: 122 | P144: 34.9 | Q144: 117 | R144: 32.8 | S144: 113 | U144: 8.2
A145: CANSIGLIO Seconde Nove | B145: 141 | C145: CANSIGLIO | D145: Seconde Nove | E145: 36 | J145: 35.8 | K145: 132 | L145: 33.9 | M145: 128 | P145: 36 | Q145: 121 | R145: 34.2 | S145: 117 | U145: 8.3
A146: CAORLE 18 Buche | B146: 142 | C146: CAORLE | D146: 18 Buche | E146: 72 | J146: 71.3 | K146: 129 | L146: 68.2 | M146: 122 | P146: 73.5 | Q146: 124 | R146: 71.8 | S146: 120 | U146: 8.4
A147: CAORLE Prime Nove | B147: 143 | C147: CAORLE | D147: Prime Nove | E147: 36 | J147: 35.5 | K147: 130 | L147: 33.9 | M147: 123 | P147: 36.7 | Q147: 121 | R147: 35.8 | S147: 118 | U147: 8.5
A148: CAORLE Seconde Nove | B148: 144 | C148: CAORLE | D148: Seconde Nove | E148: 36 | J148: 35.8 | K148: 127 | L148: 34.3 | M148: 121 | P148: 36.8 | Q148: 125 | R148: 36 | S148: 122 | U148: 8.6
A149: CARIMATE 18 Buche | B149: 145 | C149: CARIMATE | D149: 18 Buche | E149: 71 | H149: 71 | I149: 130 | J149: 69.7 | K149: 128 | L149: 67.5 | M149: 123 | N149: 72.9 | O149: 127 | P149: 71.2 | Q149: 123 | R149: 69.6 | S149: 120 | U149: 8.7
A150: CARIMATE Prime Nove | B150: 146 | C150: CARIMATE | D150: Prime Nove | E150: 36 | H150: 35.4 | I150: 131 | J150: 34.7 | K150: 128 | L150: 33.9 | M150: 124 | N150: 36.4 | O150: 127 | P150: 35.6 | Q150: 123 | R150: 34.7 | S150: 119 | U150: 8.8
A151: CARIMATE Seconde Nove | B151: 147 | C151: CARIMATE | D151: Seconde Nove | E151: 35 | H151: 35.6 | I151: 131 | J151: 34.9 | K151: 128 | L151: 33.6 | M151: 122 | N151: 36.4 | O151: 127 | P151: 35.6 | Q151: 123 | R151: 34.9 | S151: 121 | U151: 8.9
A152: CASALUNGA 18 Buche | B152: 148 | C152: CASALUNGA | D152: 18 Buche | E152: 72 | H152: 71.4 | I152: 128 | J152: 70.6 | K152: 125 | L152: 68 | M152: 119 | N152: 72.8 | O152: 123 | P152: 71.2 | Q152: 117 | R152: 69 | S152: 112 | U152: 9
A153: CASALUNGA Prime Nove | B153: 149 | C153: CASALUNGA | D153: Prime Nove | E153: 36 | H153: 35.7 | I153: 128 | J153: 35.3 | K153: 125 | L153: 34 | M153: 119 | N153: 36.4 | O153: 123 | P153: 35.6 | Q153: 118 | R153: 34.5 | S153: 112 | U153: 9.1
A154: CASALUNGA Seconde Nove | B154: 150 | C154: CASALUNGA | D154: Seconde Nove | E154: 36 | H154: 35.7 | I154: 128 | J154: 35.3 | K154: 125 | N154: 36.4 | O154: 123 | P154: 35.6 | Q154: 118 | U154: 9.2
A155: CASENTINO 18 Buche | B155: 151 | C155: CASENTINO | D155: 18 Buche | E155: 72 | J155: 70.6 | K155: 123 | L155: 67.5 | M155: 116 | P155: 73 | Q155: 131 | R155: 68.5 | S155: 122 | U155: 9.3
A156: CASENTINO Nove Buche | B156: 152 | C156: CASENTINO | D156: Nove Buche | E156: 36 | J156: 35.3 | K156: 123 | L156: 33.7 | M156: 116 | P156: 36.5 | Q156: 131 | R156: 34.2 | S156: 121 | U156: 9.4
A157: CASENTINO Tinzinosa | B157: 153 | C157: CASENTINO | D157: Tinzinosa | E157: 72 | J157: 70.7 | K157: 127 | L157: 67.3 | M157: 119 | P157: 73 | Q157: 132 | U157: 9.5
A158: CASENTINO Tinzinosa 2017 | B158: 154 | C158: CASENTINO | D158: Tinzinosa 2017 | E158: 71 | J158: 71 | K158: 128 | L158: 68.2 | M158: 121 | P158: 74.1 | Q158: 132 | U158: 9.6
A159: CASENTINO Tinzinosa prime nove (Panorama) | B159: 155 | C159: CASENTINO | D159: Tinzinosa prime nove (Panorama) | E159: 36 | J159: 35.4 | K159: 126 | L159: 33.9 | M159: 119 | P159: 36.7 | Q159: 132 | U159: 9.7
A160: CASTELCONTURBIA 9 buche Azzurro | B160: 156 | C160: CASTELCONTURBIA | D160: 9 buche Azzurro | E160: 36 | H160: 36.8 | I160: 142 | J160: 35.9 | K160: 138 | L160: 34 | M160: 129 | N160: 37.8 | O160: 141 | P160: 36.6 | Q160: 133 | R160: 34.7 | S160: 125 | U160: 9.8
A161: CASTELCONTURBIA 9 buche Giallo | B161: 157 | C161: CASTELCONTURBIA | D161: 9 buche Giallo | E161: 36 | H161: 36.4 | I161: 148 | J161: 35.6 | K161: 146 | L161: 33.9 | M161: 138 | N161: 37.5 | O161: 135 | P161: 36.8 | Q161: 131 | R161: 35.6 | S161: 126 | U161: 9.9
A162: CASTELCONTURBIA 9 buche Rosso | B162: 158 | C162: CASTELCONTURBIA | D162: 9 buche Rosso | E162: 36 | H162: 37.7 | I162: 143 | J162: 37 | K162: 141 | L162: 35.2 | M162: 132 | N162: 38.6 | O162: 137 | P162: 37.5 | Q162: 135 | R162: 36.2 | S162: 129 | U162: 10
A163: CASTELCONTURBIA Azzurro-Giallo | B163: 159 | C163: CASTELCONTURBIA | D163: Azzurro-Giallo | E163: 72 | H163: 73.2 | I163: 145 | J163: 71.5 | K163: 142 | L163: 67.9 | M163: 134 | N163: 75.3 | O163: 138 | P163: 73.4 | Q163: 132 | R163: 69.9 | S163: 125 | U163: 10.1
A164: CASTELCONTURBIA Azzurro-Rosso | B164: 160 | C164: CASTELCONTURBIA | D164: Azzurro-Rosso | E164: 72 | H164: 74.5 | I164: 143 | J164: 73 | K164: 139 | L164: 69.2 | M164: 130 | N164: 76.5 | O164: 139 | P164: 74.1 | Q164: 134 | R164: 70.6 | S164: 127 | U164: 10.2
A165: CASTELCONTURBIA Giallo-Rosso | B165: 161 | C165: CASTELCONTURBIA | D165: Giallo-Rosso | E165: 72 | H165: 74.1 | I165: 146 | J165: 72.6 | K165: 143 | L165: 69.1 | M165: 135 | N165: 76.2 | O165: 136 | P165: 74.3 | Q165: 134 | R165: 71.5 | S165: 128 | U165: 10.3
A166: CASTELFALFI LAKE + Mountain Prime Nove | B166: 162 | C166: CASTELFALFI | D166: LAKE + Mountain Prime Nove | E166: 73 | J166: 73.8 | K166: 145 | P166: 76.2 | Q166: 140 | U166: 10.4
A167: CASTELFALFI LAKE + Mountain Seconde Nove | B167: 163 | C167: CASTELFALFI | D167: LAKE + Mountain Seconde Nove | E167: 73 | J167: 73.1 | K167: 151 | P167: 75.8 | Q167: 147 | U167: 10.5
A168: CASTELFALFI LAKE 9 Buche | B168: 164 | C168: CASTELFALFI | D168: LAKE 9 Buche | E168: 37 | H168: 37.2 | I168: 152 | J168: 35.9 | K168: 144 | N168: 39.1 | O168: 152 | P168: 37.8 | Q168: 146 | U168: 10.6
A169: CASTELFALFI Mountain 18 Buche | B169: 165 | C169: CASTELFALFI | D169: Mountain 18 Buche | E169: 72 | H169: 75.6 | I169: 151 | J169: 75.1 | K169: 150 | L169: 71.9 | M169: 142 | N169: 77.8 | O169: 144 | P169: 76.4 | Q169: 141 | R169: 73.2 | S169: 134 | U169: 10.7
A170: CASTELFALFI Prime Nove Mountain | B170: 166 | C170: CASTELFALFI | D170: Prime Nove Mountain | E170: 36 | J170: 37.9 | K170: 144 | P170: 38.4 | Q170: 134 | U170: 10.8
A171: CASTELFALFI Seconde Nove Mountain | B171: 167 | C171: CASTELFALFI | D171: Seconde Nove Mountain | E171: 36 | J171: 37.2 | K171: 155 | P171: 38 | Q171: 148 | U171: 10.9
A172: CASTELGANDOLFO Campionato | B172: 168 | C172: CASTELGANDOLFO | D172: Campionato | E172: 72 | H172: 73.3 | I172: 137 | J172: 71.5 | K172: 134 | L172: 69.3 | M172: 129 | N172: 76.1 | O172: 135 | P172: 73.4 | Q172: 130 | R172: 71 | S172: 125 | U172: 11
A173: CASTELGANDOLFO Prime Nove | B173: 169 | C173: CASTELGANDOLFO | D173: Prime Nove | E173: 36 | H173: 36.4 | I173: 140 | J173: 35.6 | K173: 138 | L173: 34.5 | M173: 133 | N173: 38 | O173: 134 | P173: 36.7 | Q173: 130 | R173: 35.4 | S173: 125 | U173: 11.1
A174: CASTELGANDOLFO PRIME NOVE X2 | B174: 170 | C174: CASTELGANDOLFO | D174: PRIME NOVE X2 | E174: 72 | H174: 72.8 | I174: 140 | J174: 71.2 | K174: 138 | L174: 69.1 | M174: 133 | N174: 76 | O174: 134 | P174: 73.4 | Q174: 130 | R174: 70.8 | S174: 125 | U174: 11.2
A175: CASTELGANDOLFO provv 2019 | B175: 171 | C175: CASTELGANDOLFO | D175: provv 2019 | E175: 71 | H175: 72.2 | I175: 134 | J175: 70 | K175: 128 | L175: 67.9 | M175: 123 | N175: 74.9 | O175: 133 | P175: 71.8 | Q175: 125 | R175: 69.5 | S175: 120 | U175: 11.3
A176: CASTELGANDOLFO Seconde Nove | B176: 172 | C176: CASTELGANDOLFO | D176: Seconde Nove | E176: 36 | H176: 36.9 | I176: 134 | J176: 35.9 | K176: 129 | L176: 34.8 | M176: 124 | N176: 38.1 | O176: 134 | P176: 36.7 | Q176: 129 | R176: 35.6 | S176: 125 | U176: 11.4
A177: CASTELGANDOLFO SECONDE NOVE X 2 | B177: 173 | C177: CASTELGANDOLFO | D177: SECONDE NOVE X 2 | E177: 72 | H177: 73.8 | I177: 134 | J177: 71.7 | K177: 129 | L177: 69.6 | M177: 124 | N177: 76.2 | O177: 134 | P177: 73.4 | Q177: 129 | R177: 71.2 | S177: 125 | U177: 11.5
A178: CASTELLARO 18 Buche | B178: 174 | C178: CASTELLARO | D178: 18 Buche | E178: 66 | J178: 65.8 | K178: 115 | L178: 63.8 | M178: 110 | P178: 67.3 | Q178: 116 | R178: 67.3 | S178: 116 | U178: 11.6
A179: CASTELLARO Par 62 | B179: 175 | C179: CASTELLARO | D179: Par 62 | E179: 62 | J179: 64.2 | K179: 111 | P179: 65.6 | Q179: 112 | U179: 11.7
A180: CASTELLARO Prime 9(62) | B180: 176 | C180: CASTELLARO | D180: Prime 9(62) | E180: 31 | J180: 32.1 | K180: 111 | P180: 32.8 | Q180: 112 | U180: 11.8
A181: CASTELLARO Prime Nove | B181: 177 | C181: CASTELLARO | D181: Prime Nove | E181: 33 | J181: 32.9 | K181: 115 | L181: 31.9 | M181: 110 | P181: 33.7 | Q181: 116 | U181: 11.9
A182: CASTELLARO Seconde 9(62) | B182: 178 | C182: CASTELLARO | D182: Seconde 9(62) | E182: 31 | J182: 32.1 | K182: 111 | P182: 32.8 | Q182: 112 | U182: 12
A183: CASTELLARO Seconde Nove | B183: 179 | C183: CASTELLARO | D183: Seconde Nove | E183: 33 | J183: 32.9 | K183: 115 | P183: 33.7 | Q183: 116 | U183: 12.1
A184: CASTELL'ARQUATO 18 Buche | B184: 180 | C184: CASTELL'ARQUATO | D184: 18 Buche | E184: 73 | J184: 71.8 | K184: 124 | L184: 68.7 | M184: 117 | P184: 72.9 | Q184: 129 | R184: 69.9 | S184: 123 | U184: 12.2
A185: CASTELL'ARQUATO 2 volte Seconde Nove | B185: 181 | C185: CASTELL'ARQUATO | D185: 2 volte Seconde Nove | E185: 74 | J185: 73.2 | K185: 129 | L185: 70 | M185: 122 | P185: 74.2 | Q185: 135 | R185: 71.2 | S185: 129 | U185: 12.3
A186: CASTELL'ARQUATO Prime Nove | B186: 182 | C186: CASTELL'ARQUATO | D186: Prime Nove | E186: 36 | J186: 35.2 | K186: 119 | L186: 33.7 | M186: 112 | P186: 35.8 | Q186: 124 | R186: 34.3 | S186: 118 | U186: 12.4
A187: CASTELL'ARQUATO Seconde Nove | B187: 183 | C187: CASTELL'ARQUATO | D187: Seconde Nove | E187: 37 | J187: 36.6 | K187: 129 | L187: 35 | M187: 122 | P187: 37.1 | Q187: 135 | R187: 35.6 | S187: 129 | U187: 12.5
A188: CASTELLO SPESSA 18 Buche | B188: 184 | C188: CASTELLO SPESSA | D188: 18 Buche | E188: 71 | J188: 69.4 | K188: 133 | L188: 67.2 | M188: 128 | P188: 72.6 | Q188: 127 | R188: 68.1 | S188: 118 | U188: 12.6
A189: CASTELLO SPESSA 2 Volte 1°Nove | B189: 185 | C189: CASTELLO SPESSA | D189: 2 Volte 1°Nove | E189: 70 | J189: 68.4 | K189: 128 | L189: 66.4 | M189: 123 | P189: 71.6 | Q189: 124 | U189: 12.7
A190: CASTELLO SPESSA Prime Nove | B190: 186 | C190: CASTELLO SPESSA | D190: Prime Nove | E190: 35 | J190: 34.2 | K190: 128 | L190: 33.2 | M190: 123 | P190: 35.8 | Q190: 124 | U190: 12.8
A191: CASTELLO SPESSA Seconde Nove | B191: 187 | C191: CASTELLO SPESSA | D191: Seconde Nove | E191: 36 | J191: 35.4 | K191: 132 | L191: 34.2 | M191: 126 | P191: 36.7 | Q191: 127 | U191: 12.9
A192: CASTELLO TOLCINASCO Blu-Giallo | B192: 188 | C192: CASTELLO TOLCINASCO | D192: Blu-Giallo | E192: 72 | H192: 73.1 | I192: 138 | J192: 71.1 | K192: 133 | L192: 68 | M192: 126 | N192: 74.9 | O192: 131 | P192: 71.6 | Q192: 121 | R192: 68.1 | S192: 114 | U192: 13
A193: CASTELLO TOLCINASCO Giallo-Rosso | B193: 189 | C193: CASTELLO TOLCINASCO | D193: Giallo-Rosso | E193: 72 | H193: 73.5 | I193: 138 | J193: 71.5 | K193: 133 | L193: 68.7 | M193: 127 | N193: 75.6 | O193: 133 | P193: 72.6 | Q193: 124 | R193: 69.7 | S193: 118 | U193: 13.1
A194: CASTELLO TOLCINASCO Prime Nove (Giallo) | B194: 190 | C194: CASTELLO TOLCINASCO | D194: Prime Nove (Giallo) | E194: 36 | H194: 36.7 | I194: 142 | J194: 35.5 | K194: 134 | L194: 34 | M194: 131 | N194: 38 | O194: 132 | P194: 35.9 | Q194: 120 | R194: 34 | S194: 116 | U194: 13.2
A195: CASTELLO TOLCINASCO Rosso-Blu | B195: 191 | C195: CASTELLO TOLCINASCO | D195: Rosso-Blu | E195: 72 | H195: 73.2 | I195: 135 | J195: 71.5 | K195: 132 | L195: 68.7 | M195: 125 | N195: 74.6 | O195: 131 | P195: 72.3 | Q195: 125 | R195: 69.1 | S195: 118 | U195: 13.3
A196: CASTELLO TOLCINASCO Seconde Nove (Blu) | B196: 192 | C196: CASTELLO TOLCINASCO | D196: Seconde Nove (Blu) | E196: 36 | H196: 36.9 | I196: 135 | J196: 36 | K196: 131 | L196: 34.5 | M196: 127 | N196: 37.7 | O196: 133 | P196: 36.6 | Q196: 129 | R196: 35 | S196: 126 | U196: 13.4
A197: CASTELLO TOLCINASCO Terze Nove (Rosso) | B197: =1+B196 -> 193 | C197: CASTELLO TOLCINASCO | D197: Terze Nove (Rosso) | E197: 36 | H197: 36.8 | I197: 134 | J197: 36 | K197: 132 | L197: 34.7 | M197: 129 | N197: 37.6 | O197: 134 | P197: 36.6 | Q197: 129 | R197: 35.1 | S197: 126 | U197: =ROUND(0.1+U196,1) -> 13.5
A198: CAVAGLIA' 18 buche | B198: 194 | C198: CAVAGLIA' | D198: 18 buche | E198: 68 | J198: 66.2 | K198: 129 | L198: 63.8 | M198: 123 | P198: 67.9 | Q198: 121 | R198: 65.5 | S198: 116 | U198: 13.6
A199: CAVAGLIA' 9 buche | B199: 195 | C199: CAVAGLIA' | D199: 9 buche | E199: 35 | J199: 33.7 | K199: 130 | L199: 32.6 | M199: 124 | P199: 34.6 | Q199: 120 | R199: 33.3 | S199: 114 | U199: 13.7
A200: =_xlfn.TEXTJOIN(" ",TRUE,C200:D200) -> CAVAGLIA' 9 buche 1-9 | B200: 196 | C200: CAVAGLIA' | D200: 9 buche 1-9 | E200: 34 | J200: 32.9 | K200: 127 | L200: 31.8 | M200: 121 | P200: 33.7 | Q200: 120 | R200: 32.4 | S200: 114 | U200: 13.8
... 706 more rows
